[Event "*** Titled Tuesday Blitz"]
[Site "Chess.com"]
[Date "2018.06.05"]
[Round "4"]
[White "Ind1anStar"]
[Black "michaelk123"]
[Result "0-1"]
[WhiteElo "2388"]
[BlackElo "2442"]
[TimeControl "180+2"]
[EndTime "14:00:55 PDT"]
[Termination "michaelk123 won by resignation"]

1. d4 {[%clk 0:03:01.9]} 1... Nf6 {[%clk 0:02:59.6]} 2. Nf3 {[%clk 0:03:01.9]}
2... g6 {[%clk 0:02:59.1]} 3. Bf4 {[%clk 0:02:53.8]} 3... Bg7 {[%clk 0:02:57.9]}
4. e3 {[%clk 0:02:55]} 4... O-O {[%clk 0:02:58]} 5. h3 {[%clk 0:02:55.5]} 5...
d6 {[%clk 0:02:58.6]} 6. Be2 {[%clk 0:02:56.1]} 6... b6 {[%clk 0:02:58.3]} 7.
O-O {[%clk 0:02:57]} 7... Bb7 {[%clk 0:02:59.6]} 8. a4 {[%clk 0:02:57.3]} 8...
a6 {[%clk 0:02:59.3]} 9. c3 {[%clk 0:02:55.1]} 9... Nbd7 {[%clk 0:02:59.1]} 10.
Nbd2 {[%clk 0:02:56]} 10... c5 {[%clk 0:02:54]} 11. Qb3 {[%clk 0:02:53]} 11...
Ne4 {[%clk 0:02:51]} 12. Nxe4 {[%clk 0:02:50.3]} 12... Bxe4 {[%clk 0:02:52.9]}
13. Nd2 {[%clk 0:02:51.1]} 13... Bb7 {[%clk 0:02:47.3]} 14. Bh2 {[%clk 0:02:45]}
14... Qc7 {[%clk 0:02:47.1]} 15. Rfe1 {[%clk 0:02:34.4]} 15... Nf6 {[%clk
0:02:36.9]} 16. Nc4 {[%clk 0:02:28.5]} 16... Nd7 {[%clk 0:02:17.7]} 17. Bg4
{[%clk 0:02:27.8]} 17... Bd5 {[%clk 0:01:28.7]} 18. e4 {[%clk 0:02:13.3]} 18...
Bxc4 {[%clk 0:01:23.3]} 19. Qxc4 {[%clk 0:02:15.2]} 19... Rfc8 {[%clk
0:01:20.8]} 20. e5 {[%clk 0:01:43.3]} 20... cxd4 {[%clk 0:01:18.6]} 21. Qxc7
{[%clk 0:01:41]} 21... Rxc7 {[%clk 0:01:20.5]} 22. exd6 {[%clk 0:01:41.8]} 22...
exd6 {[%clk 0:01:15.7]} 23. Bxd6 {[%clk 0:01:38]} 23... Rca7 {[%clk 0:01:14.7]}
24. cxd4 {[%clk 0:01:33.7]} 24... Bxd4 {[%clk 0:01:15.4]} 25. Rad1 {[%clk
0:01:31.2]} 25... Bc5 {[%clk 0:01:13.3]} 26. Bf3 {[%clk 0:01:10.2]} 26... Rc8
{[%clk 0:01:06.6]} 27. Rc1 {[%clk 0:01:04.5]} 27... a5 {[%clk 0:00:48.1]} 28.
Bg4 {[%clk 0:00:39.8]} 28... Rc6 {[%clk 0:00:32.1]} 29. Bg3 {[%clk 0:00:21.9]}
29... h5 {[%clk 0:00:21.8]} 30. Re8+ {[%clk 0:00:21.8]} 30... Kg7 {[%clk
0:00:21.5]} 31. Bf3 {[%clk 0:00:22.8]} 31... Re6 {[%clk 0:00:20.6]} 32. Rd8
{[%clk 0:00:20.1]} 32... Ne5 {[%clk 0:00:17.6]} 33. Bd5 {[%clk 0:00:19.4]} 33...
Ree7 {[%clk 0:00:18.4]} 34. Kh2 {[%clk 0:00:14.9]} 34... Nd3 {[%clk 0:00:18]}
35. Rc2 {[%clk 0:00:15.1]} 35... Rad7 {[%clk 0:00:16.4]} 36. Rxd7 {[%clk
0:00:15.2]} 36... Rxd7 {[%clk 0:00:18.1]} 37. Bf3 {[%clk 0:00:16.3]} 37... Ne1
{[%clk 0:00:18.7]} 38. Re2 {[%clk 0:00:17.2]} 38... Nxf3+ {[%clk 0:00:18.6]} 39.
gxf3 {[%clk 0:00:19.1]} 39... Bd4 {[%clk 0:00:13.6]} 40. Rd2 {[%clk 0:00:19.6]}
40... f6 {[%clk 0:00:12.4]} 41. Kg2 {[%clk 0:00:17.9]} 41... Kf7 {[%clk
0:00:13.1]} 42. Rc2 {[%clk 0:00:19]} 42... Ke6 {[%clk 0:00:12.6]} 43. Rc6+
{[%clk 0:00:20.2]} 43... Kf5 {[%clk 0:00:12.4]} 44. Rc2 {[%clk 0:00:19.7]} 44...
Bc5 {[%clk 0:00:12.9]} 45. b3 {[%clk 0:00:20.7]} 45... g5 {[%clk 0:00:13.3]} 46.
h4 {[%clk 0:00:21]} 46... gxh4 {[%clk 0:00:13.8]} 47. Bxh4 {[%clk 0:00:22.9]}
47... Rg7+ {[%clk 0:00:15]} 48. Kf1 {[%clk 0:00:21.7]} 48... Re7 {[%clk
0:00:14.7]} 49. Bg3 {[%clk 0:00:22.2]} 49... Rh7 {[%clk 0:00:14.6]} 50. Rc4
{[%clk 0:00:22.8]} 50... Rd7 {[%clk 0:00:14.6]} 51. Rf4+ {[%clk 0:00:23.5]}
51... Kg6 {[%clk 0:00:12.9]} 52. Bh4 {[%clk 0:00:22.7]} 52... Bd4 {[%clk
0:00:10.3]} 53. Re4 {[%clk 0:00:21.5]} 53... Bc5 {[%clk 0:00:10.4]} 54. Re6
{[%clk 0:00:21.1]} 54... Bd4 {[%clk 0:00:09.1]} 55. Kg2 {[%clk 0:00:21.2]} 55...
Kf5 {[%clk 0:00:10.2]} 56. Rc6 {[%clk 0:00:21.8]} 56... Rf7 {[%clk 0:00:10]} 57.
Rc8 {[%clk 0:00:20.2]} 57... Rg7+ {[%clk 0:00:09.5]} 58. Kf1 {[%clk 0:00:20.3]}
58... Ke6 {[%clk 0:00:09.6]} 59. Rc4 {[%clk 0:00:21.5]} 59... Bc5 {[%clk
0:00:09.9]} 60. Re4+ {[%clk 0:00:23]} 60... Kf5 {[%clk 0:00:10.2]} 61. Bg3
{[%clk 0:00:24.6]} 61... Rd7 {[%clk 0:00:10.9]} 62. Rf4+ {[%clk 0:00:25.3]}
62... Kg5 {[%clk 0:00:10.9]} 63. Re4 {[%clk 0:00:23.4]} 63... Rd3 {[%clk
0:00:11]} 64. Bh4+ {[%clk 0:00:18.4]} 64... Kf5 {[%clk 0:00:11.5]} 65. Bg3
{[%clk 0:00:18.1]} 65... Rxf3 {[%clk 0:00:10.6]} 66. Re8 {[%clk 0:00:18.9]}
66... Rxb3 {[%clk 0:00:10.3]} 67. Rh8 {[%clk 0:00:20.2]} 67... Kg6 {[%clk
0:00:10.7]} 68. Rg8+ {[%clk 0:00:21.3]} 68... Kf7 {[%clk 0:00:11.2]} 69. Rh8
{[%clk 0:00:22.1]} 69... Rb4 {[%clk 0:00:10.9]} 70. Rxh5 {[%clk 0:00:21.4]}
70... Rxa4 {[%clk 0:00:12]} 71. Rh7+ {[%clk 0:00:22.9]} 71... Kg6 {[%clk
0:00:12.7]} 72. Rh8 {[%clk 0:00:23.3]} 72... Ra2 {[%clk 0:00:12.2]} 73. Kg2
{[%clk 0:00:24.7]} 73... a4 {[%clk 0:00:13.1]} 74. Rg8+ {[%clk 0:00:26]} 74...
Kf7 {[%clk 0:00:14]} 75. Rb8 {[%clk 0:00:26]} 75... a3 {[%clk 0:00:14]} 76. Rb7+
{[%clk 0:00:27.3]} 76... Kg6 {[%clk 0:00:14.8]} 77. Bh4 {[%clk 0:00:28.3]} 77...
Rb2 {[%clk 0:00:15.4]} 78. Ra7 {[%clk 0:00:28.7]} 78... a2 {[%clk 0:00:16.6]}
79. Ra6 {[%clk 0:00:26.4]} 79... Bd4 {[%clk 0:00:17.3]} 80. Bg3 {[%clk 0:00:26]}
80... Rc2 {[%clk 0:00:17.4]} 81. Kf3 {[%clk 0:00:26.5]} 81... a1=Q {[%clk
0:00:18.2]} 82. Rxa1 {[%clk 0:00:27]} 82... Bxa1 {[%clk 0:00:20.1]} 0-1

[Event "*** Titled Tuesday Blitz"]
[Site "Chess.com"]
[Date "2018.06.05"]
[Round "4"]
[White "francogreek"]
[Black "lionheart95"]
[Result "0-1"]
[WhiteElo "2278"]
[BlackElo "2389"]
[TimeControl "180+2"]
[EndTime "14:01:08 PDT"]
[Termination "lionheart95 won by resignation"]

1. Nf3 {[%clk 0:03:01.9]} 1... d5 {[%clk 0:02:56]} 2. g3 {[%clk 0:03:02.9]} 2...
Nf6 {[%clk 0:02:55.9]} 3. Bg2 {[%clk 0:02:57.2]} 3... Bg4 {[%clk 0:02:56.7]} 4.
h3 {[%clk 0:02:57.2]} 4... Bxf3 {[%clk 0:02:56.9]} 5. Bxf3 {[%clk 0:02:59.1]}
5... c6 {[%clk 0:02:58]} 6. O-O {[%clk 0:03:00]} 6... Nbd7 {[%clk 0:02:58.3]} 7.
d3 {[%clk 0:02:59.5]} 7... e5 {[%clk 0:02:56.3]} 8. e4 {[%clk 0:03:00.3]} 8...
dxe4 {[%clk 0:02:55.6]} 9. dxe4 {[%clk 0:03:02.2]} 9... Bc5 {[%clk 0:02:55.9]}
10. Qe2 {[%clk 0:03:02.7]} 10... O-O {[%clk 0:02:56.6]} 11. Bg2 {[%clk 0:03:01]}
11... a5 {[%clk 0:02:56.7]} 12. a4 {[%clk 0:03:01.9]} 12... Qc7 {[%clk
0:02:55.4]} 13. Nd2 {[%clk 0:03:02.9]} 13... Rfe8 {[%clk 0:02:55.2]} 14. Rd1
{[%clk 0:02:51.1]} 14... Nf8 {[%clk 0:02:55.9]} 15. c3 {[%clk 0:02:46.3]} 15...
Rad8 {[%clk 0:02:53.1]} 16. Nc4 {[%clk 0:02:43.9]} 16... Rxd1+ {[%clk
0:02:53.2]} 17. Qxd1 {[%clk 0:02:45.8]} 17... Rd8 {[%clk 0:02:54.3]} 18. Qe2
{[%clk 0:02:46.7]} 18... Ne6 {[%clk 0:02:53.3]} 19. Ne3 {[%clk 0:02:37.3]} 19...
Qd7 {[%clk 0:02:40.9]} 20. h4 {[%clk 0:02:31]} 20... b6 {[%clk 0:02:17.1]} 21.
Qc4 {[%clk 0:02:17.5]} 21... h6 {[%clk 0:02:12.3]} 22. Bf3 {[%clk 0:01:50]}
22... Qd3 {[%clk 0:02:05.2]} 23. Qxd3 {[%clk 0:01:48.6]} 23... Rxd3 {[%clk
0:02:07.1]} 24. Kf1 {[%clk 0:01:44.7]} 24... Rd8 {[%clk 0:01:59.2]} 25. Ke2
{[%clk 0:01:42.7]} 25... Ne8 {[%clk 0:01:59.7]} 26. Nf5 {[%clk 0:01:38.9]} 26...
f6 {[%clk 0:01:54.8]} 27. h5 {[%clk 0:01:37]} 27... N8c7 {[%clk 0:01:55.6]} 28.
Bd2 {[%clk 0:01:29.6]} 28... Kf7 {[%clk 0:01:56.6]} 29. b4 {[%clk 0:01:29.5]}
29... Bf8 {[%clk 0:01:53.2]} 30. bxa5 {[%clk 0:01:28.5]} 30... bxa5 {[%clk
0:01:55.1]} 31. Rb1 {[%clk 0:01:29.1]} 31... Nc5 {[%clk 0:01:55]} 32. Rb6 {[%clk
0:01:28.8]} 32... Nxa4 {[%clk 0:01:52.9]} 33. Rxc6 {[%clk 0:01:29.9]} 33... Nb5
{[%clk 0:01:52.9]} 34. Ke1 {[%clk 0:01:13.5]} 34... Nbxc3 {[%clk 0:01:45.2]} 35.
Be2 {[%clk 0:01:05]} 35... Nxe2 {[%clk 0:01:42.9]} 36. Kxe2 {[%clk 0:01:06.9]}
36... Rd7 {[%clk 0:01:34.1]} 37. Bxa5 {[%clk 0:01:06.6]} 37... Nc5 {[%clk
0:01:33.8]} 38. f3 {[%clk 0:01:03.4]} 38... Nb3 {[%clk 0:01:30.5]} 39. Bc3
{[%clk 0:01:01.7]} 39... Nc1+ {[%clk 0:01:30.5]} 40. Kf2 {[%clk 0:00:58.4]}
40... Nd3+ {[%clk 0:01:30]} 41. Ke3 {[%clk 0:00:59.7]} 41... Nc5 {[%clk
0:01:24.8]} 42. Bb4 {[%clk 0:00:56.2]} 42... Ne6 {[%clk 0:01:08.3]} 43. Bxf8
{[%clk 0:00:56.7]} 43... Nxf8 {[%clk 0:01:10.1]} 44. Nd6+ {[%clk 0:00:55.7]}
44... Ke7 {[%clk 0:01:08.6]} 45. Nf5+ {[%clk 0:00:56.4]} 45... Kf7 {[%clk
0:01:09.9]} 46. g4 {[%clk 0:00:58]} 46... Ne6 {[%clk 0:01:09.6]} 47. Ra6 {[%clk
0:00:53.8]} 47... Nf4 {[%clk 0:01:09.4]} 48. Ra8 {[%clk 0:00:51.8]} 48... Rd3+
{[%clk 0:01:07.4]} 49. Kf2 {[%clk 0:00:53.3]} 49... Rd2+ {[%clk 0:01:08.6]} 50.
Ke1 {[%clk 0:00:52.6]} 50... Rd7 {[%clk 0:01:10]} 51. Ra3 {[%clk 0:00:41.1]}
51... Nd3+ {[%clk 0:01:07.3]} 52. Kd2 {[%clk 0:00:32.2]} 52... Nf4+ {[%clk
0:01:09.2]} 53. Kc2 {[%clk 0:00:29.4]} 53... Rc7+ {[%clk 0:00:57.6]} 54. Kb2
{[%clk 0:00:28.7]} 54... Rd7 {[%clk 0:00:57.3]} 55. Ra6 {[%clk 0:00:26]} 55...
Nd3+ {[%clk 0:00:56.3]} 56. Kc3 {[%clk 0:00:26.2]} 56... Ne1 {[%clk 0:00:53.8]}
57. Nh4 {[%clk 0:00:21.1]} 57... Nd3 {[%clk 0:00:49.1]} 58. Kc4 {[%clk
0:00:20.4]} 58... Nf4 {[%clk 0:00:46.7]} 59. Kb5 {[%clk 0:00:20.6]} 59... Ne6
{[%clk 0:00:46.4]} 60. Nf5 {[%clk 0:00:21.3]} 60... Nd4+ {[%clk 0:00:45.9]} 61.
Nxd4 {[%clk 0:00:22.5]} 61... exd4 {[%clk 0:00:46.3]} 62. Ra2 {[%clk 0:00:23.4]}
62... g5 {[%clk 0:00:43.6]} 63. Kc4 {[%clk 0:00:21.2]} 63... Ke6 {[%clk
0:00:44.3]} 64. Kd3 {[%clk 0:00:21]} 64... Ke5 {[%clk 0:00:44.7]} 65. Ra5+
{[%clk 0:00:22.2]} 65... Ke6 {[%clk 0:00:41.8]} 66. Rf5 {[%clk 0:00:22.1]} 66...
Rd8 {[%clk 0:00:40.1]} 67. Rb5 {[%clk 0:00:22.2]} 67... Rd7 {[%clk 0:00:41.1]}
68. Ra5 {[%clk 0:00:23.7]} 68... Rd8 {[%clk 0:00:42.3]} 69. Ra6+ {[%clk
0:00:23.4]} 69... Ke5 {[%clk 0:00:43]} 70. Ra5+ {[%clk 0:00:24.5]} 70... Ke6
{[%clk 0:00:44.2]} 71. Rb5 {[%clk 0:00:26.1]} 71... Rd7 {[%clk 0:00:44.9]} 72.
Ra5 {[%clk 0:00:25.1]} 72... Rd8 {[%clk 0:00:45.5]} 73. Ra7 {[%clk 0:00:24.9]}
73... Ke5 {[%clk 0:00:46.4]} 74. Rh7 {[%clk 0:00:23.7]} 74... Ra8 {[%clk
0:00:47.3]} 75. Rxh6 {[%clk 0:00:20.9]} 75... Ra3+ {[%clk 0:00:48.6]} 76. Kd2
{[%clk 0:00:22]} 76... Ra2+ {[%clk 0:00:48.7]} 77. Kc1 {[%clk 0:00:21.7]} 77...
Kf4 {[%clk 0:00:47.1]} 78. Rxf6+ {[%clk 0:00:22.3]} 78... Ke3 {[%clk 0:00:48.4]}
79. h6 {[%clk 0:00:22.3]} 79... d3 {[%clk 0:00:49.5]} 80. Rd6 {[%clk 0:00:18.6]}
80... d2+ {[%clk 0:00:50.1]} 81. Kb1 {[%clk 0:00:19.1]} 81... Ra6 {[%clk
0:00:48.9]} 82. Rd7 {[%clk 0:00:08.2]} 82... Rxh6 {[%clk 0:00:48.1]} 83. e5
{[%clk 0:00:09.3]} 83... Rc6 {[%clk 0:00:47.2]} 84. Kb2 {[%clk 0:00:06.8]} 84...
Ke2 {[%clk 0:00:48.1]} 85. e6 {[%clk 0:00:04.1]} 85... Rxe6 {[%clk 0:00:47.8]}
86. Rd5 {[%clk 0:00:05]} 86... d1=Q {[%clk 0:00:48]} 87. Rxd1 {[%clk 0:00:06.2]}
0-1

[Event "*** Titled Tuesday Blitz"]
[Site "Chess.com"]
[Date "2018.06.05"]
[Round "4"]
[White "julinha97"]
[Black "Hollywood_Chess"]
[Result "1/2-1/2"]
[WhiteElo "2204"]
[BlackElo "2224"]
[TimeControl "180+2"]
[EndTime "14:01:40 PDT"]
[Termination "Game drawn by agreement"]

1. e4 {[%clk 0:03:01.9]} 1... d6 {[%clk 0:03:00.6]} 2. d4 {[%clk 0:03:01.8]}
2... Nf6 {[%clk 0:03:02.1]} 3. Nc3 {[%clk 0:03:02.5]} 3... g6 {[%clk 0:03:03.5]}
4. f4 {[%clk 0:03:03.7]} 4... Bg7 {[%clk 0:03:04.5]} 5. Nf3 {[%clk 0:03:05.2]}
5... c5 {[%clk 0:03:05.7]} 6. Bb5+ {[%clk 0:03:05.2]} 6... Bd7 {[%clk
0:03:06.3]} 7. e5 {[%clk 0:02:59.5]} 7... Ng4 {[%clk 0:03:04.9]} 8. e6 {[%clk
0:02:55.8]} 8... Bxb5 {[%clk 0:03:04.7]} 9. exf7+ {[%clk 0:02:19.2]} 9... Kf8
{[%clk 0:03:05]} 10. Nxb5 {[%clk 0:02:16.5]} 10... Qa5+ {[%clk 0:03:05.3]} 11.
Nc3 {[%clk 0:02:15.2]} 11... cxd4 {[%clk 0:02:51.5]} 12. Nxd4 {[%clk 0:02:14.8]}
12... Nc6 {[%clk 0:02:41.3]} 13. Ne6+ {[%clk 0:01:59.3]} 13... Kxf7 {[%clk
0:02:40.7]} 14. Nxg7 {[%clk 0:02:00.1]} 14... Nf6 {[%clk 0:02:36.1]} 15. Ne6
{[%clk 0:01:51.1]} 15... Kxe6 {[%clk 0:02:33.7]} 16. O-O {[%clk 0:01:52.2]}
16... Kf7 {[%clk 0:02:33.2]} 17. Kh1 {[%clk 0:01:26.4]} 17... h5 {[%clk
0:02:30.6]} 18. a3 {[%clk 0:01:22.2]} 18... Qc5 {[%clk 0:02:20]} 19. Qd3 {[%clk
0:01:13.6]} 19... Ng4 {[%clk 0:02:10.1]} 20. Ne4 {[%clk 0:01:14.2]} 20... Qd4
{[%clk 0:01:55.2]} 21. h3 {[%clk 0:01:04.8]} 21... Qxd3 {[%clk 0:01:54]} 22.
cxd3 {[%clk 0:01:06.7]} 22... Nf6 {[%clk 0:01:54]} 23. Be3 {[%clk 0:01:05.9]}
23... Nxe4 {[%clk 0:01:53.5]} 24. dxe4 {[%clk 0:01:06.8]} 24... Rac8 {[%clk
0:01:49.2]} 25. f5 {[%clk 0:01:07.4]} 25... gxf5 {[%clk 0:01:46.1]} 26. Rxf5+
{[%clk 0:01:09.3]} 26... Ke6 {[%clk 0:01:46.2]} 27. Raf1 {[%clk 0:01:07.1]}
27... b6 {[%clk 0:01:39.3]} 28. b4 {[%clk 0:01:07.3]} 28... Ne5 {[%clk
0:01:40.1]} 29. Bd4 {[%clk 0:01:00.7]} 29... Rc4 {[%clk 0:01:32.7]} 30. Rd1
{[%clk 0:00:51.8]} 30... Rh7 {[%clk 0:01:25.8]} 31. Rg5 {[%clk 0:00:52.6]} 31...
Nc6 {[%clk 0:01:20.8]} 32. Bf2 {[%clk 0:00:46.5]} 32... Rxe4 {[%clk 0:01:17.7]}
33. Rdd5 {[%clk 0:00:47.9]} 33... Ne5 {[%clk 0:01:11.1]} 34. Rd4 {[%clk
0:00:46.5]} 34... Rxd4 {[%clk 0:01:11.7]} 35. Bxd4 {[%clk 0:00:48.4]} 35... Kd5
{[%clk 0:01:11]} 36. Bxe5 {[%clk 0:00:48.1]} 36... dxe5 {[%clk 0:01:12.6]} 37.
Kg1 {[%clk 0:00:49.1]} 37... Kd4 {[%clk 0:01:13.3]} 38. Kf2 {[%clk 0:00:50.3]}
38... e4 {[%clk 0:01:14.6]} 39. Ke2 {[%clk 0:00:51.6]} 39... e6 {[%clk
0:01:01.8]} 40. Rg6 {[%clk 0:00:49.8]} 40... Rc7 {[%clk 0:01:01.4]} 41. Rxe6
{[%clk 0:00:48.5]} 41... Rc2+ {[%clk 0:01:02]} 42. Kf1 {[%clk 0:00:49.7]} 42...
Ke3 {[%clk 0:01:01.8]} 43. g4 {[%clk 0:00:48.8]} 43... hxg4 {[%clk 0:01:02.1]}
44. hxg4 {[%clk 0:00:50.1]} 44... Kf3 {[%clk 0:01:03.2]} 45. Ke1 {[%clk
0:00:49.6]} 45... Ra2 {[%clk 0:00:59.6]} 46. g5 {[%clk 0:00:48.5]} 46... Ra1+
{[%clk 0:00:55.5]} 47. Kd2 {[%clk 0:00:48.9]} 47... e3+ {[%clk 0:00:56.8]} 48.
Kd3 {[%clk 0:00:50.2]} 48... Rxa3+ {[%clk 0:00:56.8]} 49. Kc2 {[%clk 0:00:49.2]}
49... e2 {[%clk 0:00:48.2]} 50. g6 {[%clk 0:00:48.3]} 50... Kf2 {[%clk
0:00:44.9]} 51. Rf6+ {[%clk 0:00:48.9]} 51... Rf3 {[%clk 0:00:44.2]} 52. Rxf3+
{[%clk 0:00:46.4]} 52... Kxf3 {[%clk 0:00:44.8]} 53. g7 {[%clk 0:00:48]} 53...
e1=Q {[%clk 0:00:44.2]} 54. g8=Q {[%clk 0:00:49.5]} 54... Qxb4 {[%clk
0:00:40.5]} 55. Qf7+ {[%clk 0:00:50.2]} 55... Ke4 {[%clk 0:00:40.4]} 56. Qxa7
{[%clk 0:00:51.3]} 56... Kd5 {[%clk 0:00:41]} 57. Qd7+ {[%clk 0:00:51.6]} 57...
Kc4 {[%clk 0:00:39.1]} 58. Qg4+ {[%clk 0:00:51.1]} 58... Kb5 {[%clk 0:00:39.6]}
59. Qf5+ {[%clk 0:00:51.6]} 59... Ka4 {[%clk 0:00:25.3]} 60. Qd7+ {[%clk
0:00:50.4]} 60... Ka5 {[%clk 0:00:23.1]} 61. Qa7+ {[%clk 0:00:50.1]} 61... Kb5
{[%clk 0:00:24.1]} 62. Qd7+ {[%clk 0:00:51.5]} 62... Kc4 {[%clk 0:00:24.3]} 63.
Qe6+ {[%clk 0:00:50]} 63... Kd4 {[%clk 0:00:21.1]} 64. Qf6+ {[%clk 0:00:51.3]}
64... Kd5 {[%clk 0:00:21.6]} 65. Qf5+ {[%clk 0:00:51]} 65... Kc6 {[%clk
0:00:20.8]} 66. Qe6+ {[%clk 0:00:52]} 66... Kb7 {[%clk 0:00:20.9]} 67. Qd7+
{[%clk 0:00:52.8]} 67... Ka6 {[%clk 0:00:22.2]} 68. Qc8+ {[%clk 0:00:51.9]}
68... Ka5 {[%clk 0:00:23.3]} 69. Qa8+ {[%clk 0:00:51.8]} 69... Kb5 {[%clk
0:00:24.8]} 70. Qe8+ {[%clk 0:00:51.9]} 70... Kc4 {[%clk 0:00:25.8]} 71. Qe4+
{[%clk 0:00:52.2]} 71... Kc5 {[%clk 0:00:27.1]} 72. Qe5+ {[%clk 0:00:52.7]}
72... Kc6 {[%clk 0:00:27.1]} 73. Qe6+ {[%clk 0:00:52.1]} 73... Qd6 {[%clk
0:00:27.2]} 74. Qc8+ {[%clk 0:00:52.9]} 74... Kd5 {[%clk 0:00:27.9]} 75. Qg8+
{[%clk 0:00:48.1]} 75... Kd4 {[%clk 0:00:28.7]} 76. Qg4+ {[%clk 0:00:48.4]}
76... Kc5 {[%clk 0:00:29.8]} 77. Qf5+ {[%clk 0:00:48.6]} 77... Qd5 {[%clk
0:00:28.6]} 78. Qf8+ {[%clk 0:00:49.1]} 78... Kc4 {[%clk 0:00:29.2]} 79. Qf1+
{[%clk 0:00:49.8]} 79... Kb4 {[%clk 0:00:29.2]} 80. Qe1+ {[%clk 0:00:44.9]}
80... Kb5 {[%clk 0:00:29]} 81. Qb1+ {[%clk 0:00:31.2]} 81... Kc6 {[%clk
0:00:29.8]} 82. Qe1 {[%clk 0:00:21.5]} 82... Qc4+ {[%clk 0:00:30]} 83. Kb2
{[%clk 0:00:21.6]} 83... b5 {[%clk 0:00:28.3]} 84. Qe8+ {[%clk 0:00:21.4]} 84...
Kb6 {[%clk 0:00:28.8]} 85. Qd8+ {[%clk 0:00:22.3]} 85... Kc5 {[%clk 0:00:29.8]}
86. Qc7+ {[%clk 0:00:22.6]} 86... Kb4 {[%clk 0:00:30.3]} 87. Qd6+ {[%clk
0:00:23.7]} 87... Qc5 {[%clk 0:00:30.8]} 88. Qd2+ {[%clk 0:00:24.7]} 88... Ka4
{[%clk 0:00:30.6]} 89. Qd1+ {[%clk 0:00:26.1]} 89... Ka5 {[%clk 0:00:31.5]} 90.
Qd8+ {[%clk 0:00:26.9]} 90... Qb6 {[%clk 0:00:31.8]} 91. Qd2+ {[%clk 0:00:27.5]}
91... b4 {[%clk 0:00:32.6]} 92. Qd5+ {[%clk 0:00:26.8]} 92... Ka4 {[%clk
0:00:32.7]} 93. Qb3+ {[%clk 0:00:26.5]} 93... Kb5 {[%clk 0:00:33.8]} 94. Qd5+
{[%clk 0:00:27.7]} 94... Ka6 {[%clk 0:00:34.8]} 95. Qa8+ {[%clk 0:00:28.2]}
95... Kb5 {[%clk 0:00:33.9]} 96. Qd5+ {[%clk 0:00:28.7]} 1/2-1/2